bitfinex/quotes_ETHUSD_20250520
["timestamp","ask_amount","ask_price","bid_price","bid_amount"]
[1747777997639,3.9824771,2511.0,2510.1,8.0]
[1747777997803,3.98302644,2510.7,2510.3,8.7518]
[1747777998020,3.98302644,2510.7,2510.5,8.0]
[1747777998213,3.98302644,2510.7,2510.6,20.672]
[1747777998415,3.98279432,2510.8,2510.6,20.672]
[1747777998615,3.98289758,2510.8,2510.6,23.5392]
[1747777998855,3.98282917,2510.8,2510.6,23.5392]
[1747777999147,3.98270717,2510.9,2510.7,8.0]
[1747777999546,3.98235554,2511.1,2510.7,8.0]
[1747777999845,3.98254451,2511.0,2510.8,0.7518]
[1747778000048,3.98219201,2511.2,2510.9,5.714833]
[1747778000248,3.9823185,2511.1,2511.0,17.191]
[1747778000455,3.9823185,2511.1,2511.0,28.908]
[1747778000821,3.9823185,2511.1,2511.0,37.862]
[1747778001236,3.9823185,2511.1,2511.0,17.191]
[1747778001454,3.9823185,2511.1,2511.0,37.862]
[1747778001860,3.9823185,2511.1,2511.0,17.191]
[1747778002054,3.9823185,2511.1,2511.0,37.862]
[1747778002254,3.9823185,2511.1,2511.0,17.191]
[1747778002522,4.4362185,2511.1,2511.0,37.862]
[1747778003665,4.4362185,2511.1,2511.0,37.861]
[1747778004558,4.4362185,2511.1,2511.0,17.191]
[1747778004762,4.4362185,2511.1,2511.0,37.861]
[1747778009540,4.4362185,2511.1,2511.0,17.191]
[1747778009741,4.4362185,2511.1,2511.0,37.861]
[1747778013382,4.4362185,2511.1,2511.0,28.908]
[1747778013581,4.4362185,2511.1,2511.0,37.861]
[1747778019088,4.4362185,2511.1,2511.0,17.191]
[1747778019253,4.4362185,2511.1,2511.0,37.858]
[1747778019582,4.80427799,2511.1,2511.0,37.858]
[1747778019960,4.80427799,2511.1,2511.0,17.191]
[1747778020163,4.80427799,2511.1,2511.0,37.858]
[1747778024990,4.80427799,2511.1,2511.0,17.191]
[1747778025469,4.80427799,2511.1,2511.0,37.859]
[1747778025669,4.80427799,2511.1,2511.0,17.191]
[1747778025869,4.80427799,2511.1,2511.0,37.859]
[1747778026968,4.80427799,2511.1,2511.0,17.191]
[1747778027771,4.80427799,2511.1,2511.0,37.859]
[1747778028094,4.80427799,2511.1,2511.0,17.191]
[1747778028258,4.80427799,2511.1,2511.0,37.859]
[1747778028659,4.80427799,2511.1,2511.0,17.191]
[1747778028991,4.35037799,2511.1,2511.0,37.859]
[1747778031309,4.35037799,2511.1,2511.0,17.191]
[1747778031465,4.35037799,2511.1,2511.0,37.86]
[1747778033118,4.35037799,2511.1,2511.0,38.24151145]
[1747778037704,3.9823185,2511.1,2511.0,38.24151145]
[1747778038500,3.9823185,2511.1,2511.0,40.49837145]
[1747778038704,3.9823185,2511.1,2511.0,44.40073433]
[1747778038878,3.9823185,2511.1,2511.0,42.14387433]
[1747778039063,3.9823185,2511.1,2511.0,47.78882733]
[1747778040199,3.9823185,2511.1,2511.0,48.26256647]
[1747778040400,3.9823185,2511.1,2511.0,45.91758047]
[1747778040610,3.9823185,2511.1,2511.0,43.42291347]
[1747778040789,3.9823185,2511.1,2511.0,45.91658047]
[1747778041598,3.98223922,2511.2,2511.1,0.7582]
[1747778041910,3.98223922,2511.2,2511.1,9.50021588]
[1747778043023,0.00412087,2511.9,2511.3,0.7582]
[1747778043342,3.98176324,2511.5,2511.4,9.7112]
[1747778043629,3.98176324,2511.5,2511.4,21.4252]
[1747778044287,3.98176324,2511.5,2511.4,21.80671145]
[1747778044624,3.98166144,2511.6,2511.5,0.7582]
[1747778044830,3.98166144,2511.6,2511.5,5.597853]
[1747778045022,3.98166144,2511.6,2511.5,8.30986336]
[1747778046129,3.98166144,2511.6,2511.5,8.69137481]
[1747778047423,3.98166144,2511.6,2511.5,16.69137481]
[1747778047927,3.98149546,2511.7,2511.6,8.8276]
[1747778048141,3.98149546,2511.7,2511.6,13.667253]
[1747778048312,3.98149546,2511.7,2511.6,17.79154193]
[1747778048637,3.98149546,2511.7,2511.6,38.45354193]
[1747778049622,3.98149546,2511.7,2511.6,33.61388893]
[1747778049811,3.98149546,2511.7,2511.6,38.45354193]
[1747778050006,3.98149546,2511.7,2511.6,26.74254193]
[1747778050244,3.98149546,2511.7,2511.6,38.44454193]
[1747778052643,0.00412087,2511.9,2511.6,38.44454193]
[1747778052946,0.00412087,2511.9,2511.7,11.84445419]
[1747778052947,3.98121183,2511.8,2511.7,11.84445419]
[1747778053341,0.00412087,2511.9,2511.8,8.8276]
[1747778053644,0.00412087,2511.9,2511.8,12.838854]
[1747778053824,0.00412087,2511.9,2511.8,16.74121688]
[1747778054548,0.00412087,2511.9,2511.8,19.66333267]
[1747778056127,1e-08,2511.9,2511.8,19.66333267]
[1747778056332,1e-08,2511.9,2511.8,15.65207867]
[1747778057376,1e-08,2511.9,2511.8,16.05592864]
[1747778058423,0.1,2512.9,2512.3,8.0]
[1747778058628,0.1,2512.9,2512.5,8.77]
[1747778058824,3.979629,2512.8,2512.6,20.648]
[1747778059029,3.9797827,2512.7,2512.6,29.02951145]
[1747778059429,3.9797827,2512.7,2512.6,33.86916445]
[1747778059616,3.9797827,2512.7,2512.6,29.02951145]
[1747778059813,3.9797827,2512.7,2512.6,32.93187433]
[1747778060011,3.9797827,2512.7,2512.6,28.648]
[1747778060429,3.9797827,2512.7,2512.6,8.0]
[1747778060629,3.9797827,2512.7,2512.6,28.645]
[1747778062339,3.9797827,2512.7,2512.6,8.0]
[1747778062844,3.9797827,2512.7,2512.6,28.644]
[1747778063020,3.9797827,2512.7,2512.6,35.21924563]
[1747778063220,3.9797827,2512.7,2512.6,34.07011263]
[1747778063454,3.9797827,2512.7,2512.6,33.52579263]
[1747778064157,3.9797827,2512.7,2512.6,31.20189263]
[1747778064862,3.9797827,2512.7,2512.6,30.37959263]
[1747778065665,3.9797827,2512.7,2512.6,29.02286253]
[1747778066459,3.9797827,2512.7,2512.6,32.02286253]
[1747778066956,3.9797827,2512.7,2512.6,32.02186253]
[1747778068075,4.4336827,2512.7,2512.6,15.07486253]
[1747778068240,4.4336827,2512.7,2512.6,12.07486253]
[1747778069145,4.4336827,2512.7,2512.6,21.02186253]
[1747778069348,4.4339995,2512.5,2512.4,17.183]
[1747778069550,4.4339995,2512.5,2512.4,37.826]
[1747778069941,14.5139995,2512.5,2512.4,37.826]
[1747778072236,14.88153272,2512.5,2512.4,37.826]
[1747778073374,14.5139995,2512.5,2512.4,37.826]
[1747778075367,14.88154299,2512.5,2512.4,37.826]
[1747778075580,14.88154299,2512.5,2512.4,37.827]
[1747778075873,14.88154299,2512.5,2512.4,17.183]
[1747778076172,14.88154299,2512.5,2512.4,37.828]
[1747778076371,14.88154299,2512.5,2512.4,17.183]
[1747778076669,14.88154299,2512.5,2512.4,37.828]
[1747778079179,14.88154299,2512.5,2512.4,17.183]
[1747778079383,14.88154299,2512.5,2512.4,37.828]
[1747778081069,14.88154299,2512.5,2512.4,37.817]
[1747778081798,14.88154299,2512.5,2512.4,17.183]
[1747778082150,14.88154299,2512.5,2512.4,37.817]
[1747778083287,14.88154299,2512.5,2512.4,17.183]
[1747778083451,14.88154299,2512.5,2512.4,37.817]
[1747778091398,14.42764299,2512.5,2512.4,37.817]
[1747778091899,14.42764299,2512.5,2512.4,17.183]
[1747778092102,14.42764299,2512.5,2512.4,37.819]
[1747778092604,14.42764299,2512.5,2512.4,17.183]
[1747778092816,14.42764299,2512.5,2512.4,37.819]
[1747778095171,22.42764299,2512.5,2512.4,17.183]
[1747778095372,22.42764299,2512.5,2512.4,37.819]
[1747778096704,12.34764299,2512.5,2512.4,37.819]
[1747778098197,12.34764299,2512.5,2512.4,17.183]
[1747778098398,12.34764299,2512.5,2512.4,37.819]
[1747778098705,4.34764299,2512.5,2512.4,37.819]
[1747778100115,4.34914783,2512.5,2512.4,37.819]
[1747778101214,4.34914783,2512.5,2512.4,41.6009]
[1747778102308,4.34914783,2512.5,2512.4,41.98235066]
[1747778102698,4.34914783,2512.5,2512.4,42.77795066]
[1747778105314,3.9800995,2512.5,2512.4,42.77795066]
[1747778107820,3.9800995,2512.5,2512.4,22.14195066]
[1747778107993,3.9800995,2512.5,2512.4,38.99405066]
[1747778109204,3.9800995,2512.5,2512.4,18.36005066]
[1747778109400,3.9800995,2512.5,2512.4,38.99405066]
[1747778111019,3.9800995,2512.5,2512.4,47.54405066]
[1747778111319,3.9800995,2512.5,2512.4,51.09828566]
[1747778111479,3.9800995,2512.5,2512.4,55.00064854]
[1747778111885,3.9800995,2512.5,2512.4,36.81664854]
[1747778112210,3.9800995,2512.5,2512.4,56.49172454]
[1747778112905,3.9800995,2512.5,2512.4,53.88541354]
[1747778113126,3.9800995,2512.5,2512.4,33.26241354]
[1747778113310,3.9800995,2512.5,2512.4,30.26241354]
[1747778113518,3.9800995,2512.5,2512.4,50.88541354]
[1747778114031,3.9800995,2512.5,2512.4,42.88541354]
[1747778116921,3.9800995,2512.5,2512.4,42.88341354]
[1747778117284,3.9800995,2512.5,2512.4,22.26241354]
[1747778117484,3.9800995,2512.5,2512.4,38.98105066]
[1747778117694,3.9800995,2512.5,2512.4,38.18545066]
[1747778120420,3.9800995,2512.5,2512.4,29.23845066]
[1747778120629,4.4339995,2512.5,2512.4,38.18545066]
[1747778120794,3.9800995,2512.5,2512.4,38.18545066]
[1747778123631,3.9800995,2512.5,2512.4,17.56445066]
[1747778123935,3.9800995,2512.5,2512.4,38.18545066]
[1747778124630,3.9800995,2512.5,2512.4,17.56445066]
[1747778124835,4.4339995,2512.5,2512.4,38.18545066]
[1747778125532,4.80444537,2512.5,2512.4,38.18545066]
[1747778125838,4.35054537,2512.5,2512.4,38.18545066]
[1747778126701,4.35054537,2512.5,2512.4,17.56445066]
[1747778127002,4.35054537,2512.5,2512.4,38.18545066]
[1747778129025,0.37044587,2512.5,2512.4,38.18545066]
[1747778129207,0.37044587,2512.5,2512.4,47.75879887]
[1747778129418,3.97986611,2512.7,2512.4,47.75879887]
[1747778129622,0.1,2512.9,2512.6,0.7536]
[1747778130034,4.07953566,2512.9,2512.6,0.7536]
[1747778130232,4.07953566,2512.9,2512.7,0.87536]
[1747778130835,4.07953566,2512.9,2512.8,0.47561816]
[1747778132462,4.07953566,2512.9,2512.8,0.38145066]
[1747778134860,4.07953566,2512.9,2512.8,1.13975066]
[1747778135442,0.1,2512.9,2512.8,1.13975066]
[1747778135675,0.1,2512.9,2512.8,15.22746964]
[1747778135833,0.1,2512.9,2512.8,7.12853164]
[1747778136334,0.1,2512.9,2512.8,6.91091664]
[1747778136734,0.1,2512.9,2512.8,15.54261167]
[1747778136934,0.1,2512.9,2512.8,14.74765567]
[1747778138184,0.1,2512.9,2512.8,14.11596064]
[1747778139064,3.97908616,2513.2,2512.9,0.7531]
[1747778139272,3.97908616,2513.2,2513.1,8.7531]
[1747778139562,10.08,2513.8,2513.2,8.7531]
[1747778139775,3.97842466,2513.6,2513.2,8.7531]
[1747778139931,0.1,2513.9,2513.7,1.98906076]
[1747778140138,14.50957793,2515.3,2514.0,0.7531]
[1747778140378,3.97701273,2514.5,2514.1,0.7531]
[1747778140531,3.97713388,2514.4,2514.3,8.7531]
[1747778140735,3.97713388,2514.4,2514.3,34.211753]
[1747778140953,3.97713388,2514.4,2514.3,37.6329283]
[1747778141171,3.97709195,2514.4,2514.3,37.6329283]
[1747778141376,3.97709195,2514.4,2514.3,38.01437896]
[1747778141864,3.97709195,2514.4,2514.3,37.99637896]
[1747778142936,3.97709195,2514.4,2514.3,36.89810196]
[1747778143141,3.97709195,2514.4,2514.3,29.73555066]
[1747778143877,0.1,2514.9,2514.5,0.55]
[1747778144197,3.97614549,2515.0,2513.9,0.7856]
[1747778144337,3.97740832,2514.2,2514.1,8.0]
[1747778144551,3.97740832,2514.2,2514.1,7.778213]
[1747778144863,3.97740832,2514.2,2514.1,31.377213]
[1747778145060,3.97740832,2514.2,2514.1,7.839653]
[1747778145258,3.97788297,2513.9,2513.8,0.47510846]
[1747778145481,3.97788297,2513.9,2513.8,12.13110846]
[1747778145692,3.97788297,2513.9,2513.8,19.656]
[1747778146467,3.97788297,2513.9,2513.8,11.656]
[1747778146979,3.97788297,2513.9,2513.8,19.656]
[1747778147186,3.97788297,2513.9,2513.8,22.100022]
[1747778147389,3.97788297,2513.9,2513.8,22.8360322]
[1747778148959,3.97788297,2513.9,2513.8,42.0554342]
[1747778149466,3.97780649,2514.0,2513.9,8.0]
[1747778150170,3.97780649,2514.0,2513.9,12.34426]
[1747778150371,3.97780649,2514.0,2513.9,8.0]
[1747778150705,3.97780649,2514.0,2513.9,11.90236288]
[1747778151784,3.97780649,2514.0,2513.9,14.70935188]
[1747778153085,3.97755803,2514.2,2513.9,15.52865188]
[1747778153287,3.97692444,2514.6,2514.0,16.74201588]
[1747778153288,3.97760376,2514.1,2514.0,16.74201588]
[1747778153913,3.97760376,2514.1,2514.0,17.55651588]
[1747778154809,3.97760376,2514.1,2514.0,12.71686288]
[1747778154973,3.97760376,2514.1,2514.0,17.55651588]
[1747778156575,3.97760376,2514.1,2514.0,17.93434596]
[1747778158715,3.97760376,2514.1,2514.0,38.52934596]
[1747778158903,3.97760376,2514.1,2514.0,29.58834596]
[1747778159099,3.97760376,2514.1,2514.0,38.52934596]
[1747778159419,3.97749907,2514.2,2514.1,8.0]
[1747778159580,3.97749907,2514.2,2514.1,16.74201588]
[1747778160522,3.97749907,2514.2,2514.1,17.11984596]
[1747778163019,3.97749907,2514.2,2514.1,24.41271608]
[1747778163423,3.97749907,2514.2,2514.1,24.034886]
[1747778164587,3.97749907,2514.2,2514.1,3.440886]
[1747778164793,4.43162474,2514.0,2513.9,8.0]
[1747778164992,4.43162474,2514.0,2513.9,28.594]
[1747778165193,3.97772474,2514.0,2513.9,28.594]
[1747778166113,3.97772474,2514.0,2513.9,28.97348447]
[1747778166506,3.97772474,2514.0,2513.9,8.37948447]
[1747778166688,3.97772474,2514.0,2513.9,28.97348447]
[1747778168040,3.97772474,2514.0,2513.9,20.97448447]
[1747778168403,3.97772474,2514.0,2513.9,32.82188269]
[1747778168603,3.97772474,2514.0,2513.9,30.63050769]
[1747778169065,3.97772474,2514.0,2513.9,10.03550769]
[1747778169210,3.97772474,2514.0,2513.9,30.63050769]
[1747778170549,3.97772474,2514.0,2513.9,34.10504769]
[1747778173951,3.97772474,2514.0,2513.9,13.51004769]
[1747778174245,3.97772474,2514.0,2513.9,29.01748447]
[1747778174553,4.43162474,2514.0,2513.9,29.01748447]
[1747778175126,4.43162474,2514.0,2513.9,12.07648447]
[1747778175453,3.97772474,2514.0,2513.9,29.01748447]
[1747778175864,4.43162474,2514.0,2513.9,29.01748447]
[1747778176157,3.97772474,2514.0,2513.9,29.01748447]
[1747778177531,3.97772474,2514.0,2513.9,20.07648447]
[1747778177733,3.97772474,2514.0,2513.9,29.01748447]
[1747778177927,4.43162474,2514.0,2513.9,29.01748447]
[1747778179664,4.43162474,2514.0,2513.9,8.37948447]
[1747778179866,4.43162474,2514.0,2513.9,21.01748447]
[1747778180456,4.8032926,2514.0,2513.9,20.638]
[1747778182741,4.3493926,2514.0,2513.9,20.638]
[1747778182940,3.97772474,2514.0,2513.9,20.638]
[1747778183453,3.97772474,2514.0,2513.9,26.16641747]
[1747778183651,3.97772474,2514.0,2513.9,24.05110647]
[1747778184056,3.97772474,2514.0,2513.9,24.42949935]
[1747778187342,3.97772474,2514.0,2513.9,21.01839288]
[1747778191195,3.97772474,2514.0,2513.9,0.37839288]
[1747778191501,3.97772474,2514.0,2513.9,21.01839288]
[1747778191690,3.97772474,2514.0,2513.9,29.01839288]
[1747778192401,3.97772474,2514.0,2513.9,33.85804588]
[1747778192700,3.97772474,2514.0,2513.9,32.78003888]
[1747778193212,3.97772474,2514.0,2513.9,33.25414651]
[1747778193794,3.97772474,2514.0,2513.9,32.41604651]
[1747778194300,1.99346667,2515.5,2514.0,8.0]
[1747778194608,3.97686249,2514.6,2514.3,0.8289]
[1747778194785,3.97624704,2515.0,2514.5,8.0]
[1747778194968,3.97639394,2514.9,2514.7,8.0]
[1747778195170,3.97645936,2514.8,2514.7,8.0]
[1747778195371,3.97645936,2514.8,2514.7,38.062091]
[1747778197898,3.97645936,2514.8,2514.7,34.8999]
[1747778198100,3.97645936,2514.8,2514.7,38.250721]
[1747778200793,3.97645936,2514.8,2514.7,37.957683]
[1747778200975,3.97645936,2514.8,2514.7,34.8999]
[1747778202093,3.97645936,2514.8,2514.7,42.39267953]
[1747778203911,3.97645936,2514.8,2514.7,41.83180153]
[1747778204074,3.97645936,2514.8,2514.7,28.99278653]
[1747778204275,4.43035936,2514.8,2514.7,45.764]
[1747778204596,4.43035936,2514.8,2514.7,45.763]
[1747778205694,4.43035936,2514.8,2514.7,17.168]
[1747778205894,4.47033325,2514.8,2514.7,37.763]
[1747778206097,4.43035936,2514.8,2514.7,17.168]
[1747778206394,4.43035936,2514.8,2514.7,37.763]
[1747778208810,3.97645936,2514.8,2514.7,37.763]
[1747778209407,3.97645936,2514.8,2514.7,17.168]
[1747778209615,4.43035936,2514.8,2514.7,37.763]
[1747778211254,4.43035936,2514.8,2514.7,17.168]
[1747778211398,3.97645936,2514.8,2514.7,37.764]
[1747778211598,3.97645936,2514.8,2514.7,17.168]
[1747778211821,4.43035936,2514.8,2514.7,37.764]
[1747778213501,3.97645936,2514.8,2514.7,37.764]
[1747778214228,4.43035936,2514.8,2514.7,17.168]
[1747778214444,4.43035936,2514.8,2514.7,37.764]
[1747778214654,4.43035936,2514.8,2514.7,28.824]
[1747778214952,4.43035936,2514.8,2514.7,37.764]
[1747778215101,4.43035936,2514.8,2514.7,28.824]
[1747778215306,4.43035936,2514.8,2514.7,37.764]
[1747778215697,3.97788297,2513.9,2513.8,0.47410763]
[1747778216033,3.97788297,2513.9,2513.8,21.07110763]
[1747778216330,3.97788297,2513.9,2513.8,12.13110763]
[1747778216532,3.97788297,2513.9,2513.8,21.07110763]
[1747778217236,3.97788297,2513.9,2513.8,20.597]
[1747778217716,4.43178297,2513.9,2513.8,20.597]
[1747778220346,4.43178297,2513.9,2513.8,20.598]
[1747778220641,3.97819946,2513.7,2513.6,17.165]
[1747778220841,3.97819946,2513.7,2513.6,37.764]
[1747778221850,4.43209946,2513.7,2513.6,17.165]
[1747778222142,4.43209946,2513.7,2513.6,28.823]
[1747778223243,4.98209946,2513.7,2513.6,28.823]
[1747778225231,4.98209946,2513.7,2513.6,17.165]
[1747778225752,4.98209946,2513.7,2513.6,17.165]
[1747778225928,15.06209946,2513.7,2513.6,17.165]
[1747778228759,4.43241601,2513.5,2513.4,11.66]
[1747778228940,4.43241601,2513.5,2513.1,9.044]
[1747778228941,12.98289092,2513.2,2513.1,9.044]
[1747778229259,23.06289092,2513.2,2513.1,0.1]
[1747778229555,15.06289092,2513.2,2513.1,0.1]
[1747778230056,23.06289092,2513.2,2513.1,0.1]
[1747778230353,27.24889092,2513.2,2513.1,0.1]
[1747778232444,23.06289092,2513.2,2513.1,0.1]
[1747778232854,12.98352432,2512.8,2512.7,11.664]
[1747778233157,4.52946595,2512.9,2512.1,11.764]
[1747778233158,4.98447479,2512.2,2512.1,11.764]
[1747778233376,14.96447479,2512.2,2512.1,11.764]
[1747778235646,14.96447479,2512.2,2512.1,0.1]
[1747778236362,22.96447479,2512.2,2512.1,0.1]
[1747778238140,3.98152572,2511.6,2511.5,0.62231991]
[1747778238345,14.51152572,2511.6,2511.5,0.62231991]
[1747778239268,14.86542572,2511.6,2511.5,0.62231991]
[1747778240768,13.96152572,2511.6,2511.5,0.62231991]
[1747778240968,13.96152572,2511.6,2511.5,1.44991991]
[1747778245780,13.96152572,2511.6,2511.5,18.63591991]
[1747778246595,13.96152572,2511.6,2511.5,17.80831991]
[1747778252566,13.96152572,2511.6,2511.5,26.75931991]
[1747778253353,13.96152572,2511.6,2511.5,28.37801214]
[1747778253556,3.98152572,2511.6,2511.5,28.37801214]
[1747778253755,3.98101461,2512.0,2511.6,0.777]
[1747778254067,3.97903764,2513.2,2511.8,0.777]
[1747778254270,3.97971581,2512.8,2512.0,0.777]
[1747778254480,3.97971581,2512.8,2512.3,0.777]
[1747778254794,3.97941075,2513.0,2512.5,0.7776]
[1747778255096,3.97952379,2512.9,2512.6,26.135]
[1747778255296,3.97883261,2513.3,2512.6,26.135]
[1747778255671,3.97959397,2512.9,2512.6,26.135]
[1747778256710,8.0,2513.6,2512.6,26.135]
[1747778256711,0.1,2513.9,2512.8,0.7793]
[1747778256994,3.97840647,2513.6,2513.0,0.7793]
[1747778257359,3.97852867,2513.5,2513.0,0.7793]
[1747778257684,3.97846775,2513.6,2513.2,0.7793]
[1747778257989,3.9785364,2513.5,2513.3,8.95]
[1747778258196,3.97821447,2513.7,2513.4,11.665]
[1747778259165,0.1,2513.9,2513.5,0.7793]
[1747778259394,0.1,2513.9,2513.6,17.181]
[1747778260876,0.1,2513.9,2513.7,0.7793]
[1747778261068,0.1,2513.9,2513.7,8.7793]
[1747778261420,0.1,2513.9,2513.8,14.9337816]
[1747778261584,0.1,2513.9,2513.8,18.83614448]
[1747778261788,13.95657996,2514.8,2514.0,1.98878803]
[1747778262111,13.95657996,2514.8,2514.3,0.7793]
[1747778262276,0.1,2514.9,2514.3,2.767881]
[1747778262483,4.07631789,2514.9,2514.5,0.7793]
[1747778262808,0.1,2514.9,2514.6,28.841]
[1747778263445,3.97661748,2514.7,2514.6,17.178]
[1747778263569,3.97661748,2514.7,2514.6,37.788]
[1747778263901,4.07634658,2514.9,2514.6,37.788]
[1747778264261,3.97649219,2514.8,2514.6,37.788]
[1747778264865,3.97661748,2514.7,2514.6,37.788]
[1747778265066,3.97661748,2514.7,2514.6,37.782]
[1747778268274,3.97653252,2514.8,2514.6,41.68436288]
[1747778269398,3.97661748,2514.7,2514.6,41.68436288]
[1747778270178,3.97661748,2514.7,2514.6,37.782]
[1747778271198,3.97645936,2514.8,2514.6,37.782]
[1747778271507,4.07632326,2514.9,2514.6,37.782]
[1747778271812,3.97661748,2514.7,2514.6,37.782]
[1747778272108,3.97661748,2514.7,2514.6,38.45944702]
[1747778272276,3.97661748,2514.7,2514.6,29.51544702]
[1747778272475,3.97661748,2514.7,2514.6,28.838]
[1747778272802,3.97661748,2514.7,2514.6,37.78]
[1747778276206,3.97661748,2514.7,2514.6,17.178]
[1747778276522,3.97661748,2514.7,2514.6,37.772]
[1747778281590,3.97661748,2514.7,2514.6,37.771]
[1747778282817,3.97661748,2514.7,2514.6,28.831]
[1747778282994,3.97661748,2514.7,2514.6,37.771]
[1747778283738,3.97661748,2514.7,2514.6,17.178]
[1747778283943,3.97661748,2514.7,2514.6,37.771]
[1747778285709,3.97661748,2514.7,2514.6,38.14735916]
[1747778286247,3.97661748,2514.7,2514.6,29.20735916]
[1747778286456,3.97661748,2514.7,2514.6,38.14735916]
[1747778287338,3.97661748,2514.7,2514.6,17.55435916]
[1747778287543,3.97661748,2514.7,2514.6,38.14735916]
[1747778290219,3.97661748,2514.7,2514.6,29.20735916]
[1747778290421,3.97661748,2514.7,2514.6,38.14735916]
[1747778294266,14.41051748,2514.7,2514.6,38.14735916]
[1747778295661,14.41051748,2514.7,2514.6,37.771]
[1747778295964,14.96051748,2514.7,2514.6,37.771]
[1747778301887,19.14651748,2514.7,2514.6,37.771]
[1747778302094,14.96051748,2514.7,2514.6,17.178]
[1747778302394,3.97772474,2514.0,2513.9,0.47410763]
[1747778302589,13.95772474,2514.0,2513.9,0.47410763]
[1747778302795,13.95772474,2514.0,2513.9,20.96654425]
[1747778304590,13.95772474,2514.0,2513.9,0.37854425]
[1747778304807,13.95772474,2514.0,2513.9,20.588]
[1747778305091,14.41162474,2514.0,2513.9,20.588]
[1747778305389,14.41162474,2514.0,2513.9,11.647]
[1747778305604,14.41162474,2514.0,2513.9,20.588]
[1747778309404,3.97788297,2513.9,2513.8,17.167]
[1747778309606,3.97788297,2513.9,2513.8,37.758]
[1747778310302,3.97788297,2513.9,2513.8,17.167]
[1747778310502,3.97788297,2513.9,2513.8,37.759]
[1747778310807,4.52788297,2513.9,2513.8,37.759]
[1747778311509,4.52788297,2513.9,2513.8,28.816]
[1747778311670,4.52788297,2513.9,2513.8,37.759]
[1747778311873,14.50788297,2513.9,2513.8,37.759]
[1747778317914,14.50788297,2513.9,2513.8,28.816]
[1747778318223,22.50788297,2513.9,2513.8,17.167]
[1747778319927,22.50788297,2513.9,2513.8,26.111]
[1747778320126,14.50788297,2513.9,2513.8,26.111]
[1747778324637,3.97946595,2512.9,2512.8,17.174]
[1747778324826,3.97946595,2512.9,2512.8,37.771]
[1747778325016,13.95946595,2512.9,2512.8,17.174]
[1747778325217,13.95946595,2512.9,2512.8,37.771]
[1747778326741,14.50946595,2512.9,2512.8,37.771]
[1747778326938,15.21658186,2512.9,2512.8,17.174]
[1747778327143,14.50946595,2512.9,2512.8,37.771]
[1747778327640,14.50946595,2512.9,2512.8,37.772]
[1747778328635,4.53057479,2512.2,2512.0,8.946]
[1747778328834,4.53057479,2512.2,2511.9,38.44166667]
[1747778328835,15.00444868,2512.2,2511.9,38.44166667]
[1747778329142,14.96447479,2512.2,2511.9,26.78866667]
[1747778329320,22.96447479,2512.2,2511.9,17.84266667]
[1747778329517,22.96447479,2512.2,2511.9,0.66666667]
[1747778329518,27.15047479,2512.2,2511.9,0.66666667]
[1747778330230,29.7328171,2512.2,2511.9,0.66666667]
[1747778331314,41.3748171,2512.2,2511.9,0.66666667]
[1747778331631,37.1888171,2512.2,2511.9,0.66666667]
[1747778332355,34.7998171,2512.2,2511.9,0.66666667]
[1747778335351,34.7998171,2512.2,2511.1,0.1]
[1747778335352,4.53200135,2511.3,2511.1,0.1]
[1747778335643,13.19549325,2511.2,2511.1,0.1]
[1747778336860,13.58483546,2511.2,2511.1,0.1]
[1747778337862,22.13483546,2511.2,2511.1,0.1]
[1747778340360,22.58873546,2511.2,2511.1,0.1]
[1747778340966,22.13483546,2511.2,2511.1,0.1]
[1747778341168,13.19549325,2511.2,2511.1,11.748]
[1747778341672,13.19549325,2511.2,2511.1,29.7142]
[1747778342465,13.19549325,2511.2,2511.1,31.80308]
[1747778342764,3.14885992,2511.2,2511.1,31.9623]
[1747778342983,3.98184279,2511.4,2511.2,0.7772]
[1747778343289,3.98184279,2511.4,2511.3,0.7772]
[1747778343585,3.98111342,2511.9,2511.4,0.7772]
[1747778343586,3.98158951,2511.6,2511.4,0.7772]
[1747778343799,3.98158951,2511.6,2511.5,10.2918853]
[1747778343963,3.98158951,2511.6,2511.5,9.7302]
[1747778344147,3.98158951,2511.6,2511.5,8.953]
[1747778344148,3.98152572,2511.6,2511.5,8.953]
[1747778344345,3.14822572,2511.6,2511.5,13.792653]
[1747778344647,3.14822572,2511.6,2511.5,15.1719183]
[1747778344997,3.14822572,2511.6,2511.5,15.9238183]
[1747778348562,3.98138664,2511.7,2511.5,15.9238183]
[1747778348563,3.98131663,2511.8,2511.6,0.8044]
[1747778348754,3.98131663,2511.8,2511.7,16.817447]
[1747778348954,3.98131663,2511.8,2511.7,19.53241823]
[1747778352659,3.98131663,2511.8,2511.7,18.96443423]
[1747778354702,3.98131663,2511.8,2511.7,15.16637123]
[1747778354903,3.98131663,2511.8,2511.7,19.96443423]
[1747778355423,3.98131663,2511.8,2511.7,15.16637123]
[1747778355606,3.98131663,2511.8,2511.7,26.56334323]
[1747778355807,3.98131663,2511.8,2511.7,3.51937123]
[1747778356011,3.98131663,2511.8,2511.7,12.4494]
[1747778356211,3.98131663,2511.8,2511.7,20.595]
[1747778357422,3.98168425,2511.5,2511.4,0.7599]
[1747778357577,3.98168425,2511.5,2511.4,8.7599]
[1747778357774,3.98168425,2511.5,2511.4,29.3549]
[1747778359214,3.98168425,2511.5,2511.4,0.7599]
[1747778359505,3.98168425,2511.5,2511.4,20.582]
[1747778359706,3.98215992,2511.2,2511.1,18.0489]
[1747778359908,3.98215992,2511.2,2511.1,38.6309]
[1747778363520,3.98215992,2511.2,2511.1,28.922]
[1747778363685,3.98215992,2511.2,2511.1,37.873]
[1747778364517,3.98215992,2511.2,2511.1,28.922]
[1747778364718,3.98215992,2511.2,2511.1,17.289]
[1747778364890,3.98215992,2511.2,2511.1,37.873]
[1747778365723,13.99399325,2511.2,2511.1,17.289]
[1747778366027,13.99399325,2511.2,2511.1,37.873]
[1747778366197,13.99399325,2511.2,2511.1,28.922]
[1747778368616,21.99399325,2511.2,2511.1,28.922]
[1747778369315,21.99399325,2511.2,2511.1,17.289]
[1747778370325,22.96065992,2511.2,2511.1,17.289]
[1747778370520,23.51065992,2511.2,2511.1,17.289]
[1747778370720,23.54405992,2511.2,2511.1,0.1]
[1747778371912,13.36405992,2511.2,2511.1,0.1]